bitfinex-derivatives/quotes_BTCF0:USTF0_20210705
["timestamp","ask_amount","ask_price","bid_price","bid_amount"]
[1625513298099,0.65615088,34157.0,34156.0,0.00346961]
[1625513298398,0.05553039,34155.0,34146.0,0.24057544]
[1625513298598,0.11453039,34155.0,34146.0,0.24057544]
[1625513298698,0.11453039,34155.0,34140.0,1.00922506]
[1625513298699,0.057,34154.0,34140.0,1.00922506]
[1625513298898,4.0895,34145.0,34143.0,0.01214664]
[1625513298998,0.057,34144.0,34143.0,0.01214664]
[1625513299198,0.175,34144.0,34143.0,0.01214664]
[1625513299901,0.65615088,34144.0,34143.0,0.01214664]
[1625513300904,0.65615088,34144.0,34143.0,0.00867617]
[1625513301003,0.65615088,34144.0,34143.0,0.01214667]
[1625513305664,0.65615088,34144.0,34134.0,0.01735227]
[1625513305761,0.059,34143.0,34132.0,1.01168757]
[1625513305962,1.04930632,34133.0,34132.0,1.01168757]
[1625513306061,1.10630632,34133.0,34132.0,1.01168757]
[1625513306161,1.22430632,34133.0,34132.0,1.01168757]
[1625513306261,1.22430632,34133.0,34132.0,1.02383614]
[1625513306418,1.22430632,34133.0,34132.0,0.01214857]
[1625513306812,1.22430632,34133.0,34131.0,0.01214916]
[1625513307413,1.22430632,34133.0,34125.0,0.24057544]
[1625513307518,1.22430632,34133.0,34118.0,1.68931443]
[1625513307613,1.22430632,34133.0,34126.0,0.00347155]
[1625513307914,0.48115088,34127.0,34124.0,0.01215043]
[1625513308015,0.057,34126.0,34124.0,0.01215043]
[1625513308121,0.48057,34126.0,34119.0,1.01745194]
[1625513308413,0.48057,34126.0,34120.0,0.0121509]
[1625513308513,0.48057,34126.0,34120.0,0.0086509]
[1625513309116,0.48057,34126.0,34116.0,0.01215123]
[1625513309315,3.8057,34117.0,34116.0,0.01215123]
[1625513309417,4.07063,34117.0,34116.0,0.01215123]
[1625513309516,4.12963,34117.0,34116.0,0.01215123]
[1625513309622,4.12963,34117.0,34115.0,0.01215123]
[1625513309744,4.12963,34117.0,34115.0,1.03084104]
[1625513309929,4.12963,34117.0,34116.0,0.01215147]
[1625513310018,4.18663,34117.0,34116.0,0.01215147]
[1625513311118,0.04684853,34116.0,34115.0,0.24057544]
[1625513311216,0.10584853,34116.0,34115.0,0.24057544]
[1625513311317,0.16284853,34116.0,34115.0,0.24057544]
[1625513311420,0.116,34116.0,34113.0,1.01944508]
[1625513311518,0.116,34116.0,34115.0,0.00347265]
[1625513311617,0.175,34116.0,34115.0,0.00347265]
[1625513311718,0.175,34116.0,34114.0,0.00347277]
[1625513311968,0.175,34116.0,34111.0,1.42992804]
[1625513311969,0.72172632,34115.0,34111.0,0.24057544]
[1625513312071,0.057,34114.0,34111.0,0.24057544]
[1625513312269,0.175,34114.0,34112.0,0.00347285]
[1625513312819,0.175,34114.0,34112.0,7.285e-05]
[1625513313070,0.2619,34114.0,34112.0,7.285e-05]
[1625513313372,0.2619,34114.0,34106.0,0.00347288]
[1625513314024,0.48115088,34107.0,34106.0,0.00347288]
[1625513314128,0.86766088,34107.0,34106.0,0.00347288]
[1625513314223,0.92666088,34107.0,34106.0,0.00347288]
[1625513314322,0.98366088,34107.0,34106.0,0.00347288]
[1625513315123,1.07226088,34107.0,34106.0,0.00347288]
[1625513315244,1.07226088,34107.0,34101.0,1.43120106]
[1625513315245,1.07226088,34107.0,34101.0,0.19603731]
[1625513315434,1.07226088,34107.0,34104.0,0.0034735]
[1625513315625,0.059,34103.0,34100.0,0.87495606]
[1625513315826,0.118,34103.0,34100.0,0.81595606]
[1625513315926,0.057,34102.0,34100.0,0.81595606]
[1625513316028,0.48115088,34101.0,34100.0,0.75785606]
[1625513316130,0.48115088,34101.0,34087.0,1.36260475]
[1625513316131,0.65615088,34101.0,34087.0,1.36260475]
[1625513316631,0.65615088,34101.0,34085.0,1.36003208]
[1625513316732,4.2595,34088.0,34085.0,1.36003208]
[1625513316827,4.5678,34088.0,34085.0,1.36003208]
[1625513316933,0.3673,34088.0,34085.0,1.36003208]
[1625513317057,0.3103,34088.0,34085.0,1.36003208]
[1625513317191,0.2513,34088.0,34086.0,0.00347455]
[1625513317460,0.3103,34088.0,34086.0,0.00347455]
[1625513317560,3.9498,34087.0,34086.0,0.00347455]
[1625513317634,3.9498,34087.0,34084.0,0.00347483]
[1625513317838,4.0957,34087.0,34084.0,0.00347483]
[1625513317929,4.0957,34087.0,34083.0,0.00347494]
[1625513318029,0.61746288,34084.0,34083.0,0.00347494]
[1625513318129,0.73346288,34084.0,34083.0,0.00347494]
[1625513318229,0.73346288,34084.0,34082.0,1.36012121]
[1625513318430,0.73346288,34084.0,34078.0,1.36187927]
[1625513318635,0.79246288,34084.0,34078.0,1.36187927]
[1625513318730,0.79246288,34084.0,34079.0,0.00347522]
[1625513319484,0.79246288,34084.0,34074.0,0.00347535]
[1625513319783,0.79246288,34084.0,34069.0,1.35853138]
[1625513320037,0.24057544,34079.0,34074.0,0.00347599]
[1625513320134,0.57024544,34079.0,34074.0,0.00347599]
[1625513320236,0.62924544,34079.0,34074.0,0.00347599]
[1625513320336,0.62924544,34079.0,34070.0,0.00347608]
[1625513320938,0.57224544,34079.0,34070.0,0.00347608]
[1625513321039,0.57224544,34079.0,34064.0,0.24057544]
[1625513321191,0.0884,34078.0,34064.0,0.35857544]
[1625513321292,0.35857544,34079.0,34064.0,0.29957544]
[1625513321393,0.118,34078.0,34065.0,0.00347618]
[1625513321591,0.118,34078.0,34065.0,0.12147618]
[1625513321891,0.118,34078.0,34066.0,0.00347613]
[1625513322090,0.48115088,34067.0,34066.0,0.06247613]
[1625513322191,0.72172632,34067.0,34066.0,0.06247613]
[1625513322393,0.72172632,34067.0,34066.0,0.059]
[1625513322692,0.72172632,34067.0,34066.0,0.06247629]
[1625513323195,0.72172632,34067.0,34066.0,0.06247647]
[1625513323694,0.72172632,34067.0,34066.0,0.40123703]
[1625513324198,0.72172632,34067.0,34066.0,0.06247647]
[1625513324697,0.72172632,34067.0,34066.0,0.00347647]
[1625513324797,0.72172632,34067.0,34066.0,0.06247647]
[1625513325346,0.37401774,34067.0,34066.0,0.00347647]
[1625513325849,0.37401774,34067.0,34066.0,0.34181705]
[1625513326401,0.37401774,34067.0,34066.0,0.06247647]
[1625513327006,0.37401774,34067.0,34066.0,0.059]
[1625513327303,0.37401774,34067.0,34066.0,0.06247617]
[1625513327902,0.1334423,34067.0,34066.0,0.12147617]
[1625513328351,0.1334423,34067.0,34066.0,0.36205161]
[1625513328551,0.1334423,34067.0,34066.0,0.30305161]
[1625513329303,0.1334423,34067.0,34066.0,0.36205161]
[1625513329654,0.1334423,34067.0,34066.0,0.37954719]
[1625513329769,0.24057544,34075.0,34066.0,0.39704277]
[1625513330158,0.24057544,34075.0,34067.0,0.00347588]
[1625513330257,0.24057544,34075.0,34068.0,0.33771648]
[1625513330358,0.24057544,34075.0,34074.0,0.47836544]
[1625513330456,0.24057544,34075.0,34074.0,0.47923753]
[1625513330556,0.24057544,34075.0,34074.0,0.53823753]
[1625513330656,0.24057544,34075.0,34074.0,0.54258528]
[1625513332160,0.24057544,34075.0,34074.0,0.30479528]
[1625513332362,0.24057544,34075.0,34074.0,0.24579528]
[1625513332862,0.24057544,34075.0,34074.0,0.30479528]
[1625513332962,0.24057544,34075.0,34074.0,0.24579528]
[1625513333163,0.24057544,34075.0,34074.0,0.30479528]
[1625513333264,0.24057544,34075.0,34074.0,0.24579528]
[1625513333366,0.24057544,34075.0,34074.0,0.30479528]
[1625513333666,0.24057544,34075.0,34074.0,0.31348448]
[1625513334066,0.24057544,34079.0,34074.0,0.31348448]
[1625513334372,0.24057544,34079.0,34078.0,0.24144753]
[1625513334670,0.24057544,34079.0,34078.0,0.24579524]
[1625513336124,0.24057544,34079.0,34078.0,0.25448426]
[1625513338725,0.24057544,34079.0,34078.0,0.31348426]
[1625513339879,0.24057544,34079.0,34078.0,0.25448426]
[1625513341885,0.24057544,34080.0,34078.0,0.25448426]
[1625513342185,0.24057544,34080.0,34079.0,0.01216389]
[1625513342286,0.24057544,34080.0,34073.0,0.91616634]
[1625513342287,0.24057544,34080.0,34073.0,0.68272723]
[1625513342438,0.72172632,34074.0,34073.0,1.01345313]
[1625513342662,0.77872632,34074.0,34073.0,0.33786223]
[1625513342740,0.89672632,34074.0,34073.0,0.36741437]
[1625513342940,0.89672632,34074.0,34073.0,0.36181437]
[1625513343037,0.89672632,34074.0,34073.0,0.33233076]
[1625513343138,0.89672632,34074.0,34073.0,0.01216853]
[1625513343593,0.89672632,34074.0,34059.0,0.02955428]
[1625513343795,0.89672632,34074.0,34073.0,0.0121697]
[1625513344097,0.89672632,34074.0,34060.0,0.01216985]
[1625513344197,0.89672632,34074.0,34054.0,0.0173855]
[1625513344296,0.76127,34073.0,34054.0,0.0173855]
[1625513344399,0.057,34072.0,34054.0,0.0173855]
[1625513344497,1.27932176,34055.0,34054.0,0.0173855]
[1625513344601,1.33632176,34055.0,34053.0,0.02956433]
[1625513344697,1.33832176,34055.0,34053.0,0.02956433]
[1625513344799,1.27932176,34055.0,34053.0,0.02956433]
[1625513344897,1.33832176,34055.0,34054.0,0.01217263]
[1625513345097,1.27932176,34055.0,34054.0,0.01217263]
[1625513345400,1.33832176,34055.0,34054.0,0.00347789]
[1625513345499,1.33832176,34055.0,34048.0,0.02956273]
[1625513345598,1.27932176,34055.0,34054.0,0.00347797]
[1625513345698,1.33832176,34055.0,34054.0,0.00869492]
[1625513345900,1.39532176,34055.0,34049.0,0.01217314]
[1625513346149,1.45432176,34055.0,34054.0,0.01217409]
[1625513346451,1.45432176,34055.0,34042.0,0.02956408]
[1625513346550,1.45432176,34055.0,34042.0,0.08856408]
[1625513346750,1.45432176,34055.0,34054.0,0.01217381]
[1625513346950,1.45432176,34055.0,34043.0,0.01217365]
[1625513347250,1.45432176,34055.0,34054.0,0.01217395]
[1625513347452,1.45432176,34055.0,34044.0,0.01217419]
[1625513347751,1.45432176,34055.0,34035.0,0.02956718]
[1625513347853,1.45432176,34055.0,34035.0,0.08856718]
[1625513348152,1.45432176,34055.0,34035.0,0.14756718]
[1625513348254,1.45432176,34055.0,34036.0,0.012175]
[1625513348355,1.45432176,34055.0,34036.0,0.071175]
[1625513348454,0.72172632,34037.0,34036.0,0.130175]
[1625513349157,0.37374553,34037.0,34036.0,0.130175]
[1625513349607,0.37374553,34037.0,34036.0,0.071175]
[1625513349709,0.58110553,34037.0,34036.0,0.071175]
[1625513349956,0.58110553,34037.0,34036.0,0.012175]
[1625513350057,0.58110553,34037.0,34036.0,0.071175]
[1625513350457,0.58110553,34037.0,34036.0,0.31175044]
[1625513352413,0.58110553,34037.0,34036.0,0.25275044]
[1625513353365,0.63810553,34037.0,34036.0,0.012175]
[1625513353466,0.75610553,34037.0,34036.0,0.012175]
[1625513353865,5.13950553,34037.0,34031.0,0.68834442]
[1625513354068,5.13950553,34037.0,34032.0,0.02958083]
[1625513354265,0.75610553,34037.0,34032.0,0.02958083]
[1625513354365,0.75610553,34037.0,34032.0,0.01218034]
[1625513354469,0.24057544,34033.0,34032.0,0.01218034]
[1625513354577,0.24057544,34033.0,34032.0,0.0034801]
[1625513354666,0.24057544,34033.0,34030.0,0.24057544]
[1625513354868,0.24057544,34033.0,34032.0,0.01218]
[1625513355165,0.24057544,34033.0,34031.0,0.01217998]
[1625513355367,0.37709,34032.0,34030.0,0.24057544]
[1625513355465,0.37709,34032.0,34027.0,0.24057544]
[1625513355668,0.37709,34032.0,34031.0,0.0121798]
[1625513355968,0.37709,34032.0,34028.0,0.01218]
[1625513356167,0.37709,34032.0,34031.0,0.01218039]
[1625513356417,0.37709,34032.0,34025.0,0.02958051]
[1625513356516,0.48115088,34026.0,34025.0,0.13018052]
[1625513356968,0.48115088,34026.0,34025.0,0.07118052]
[1625513357421,0.13305915,34026.0,34025.0,0.07118052]
[1625513358242,0.19005915,34026.0,34023.0,0.01740075]
[1625513358349,0.24905915,34026.0,34023.0,0.01740075]
[1625513358522,0.48115088,34024.0,34023.0,0.01740075]
[1625513358623,0.93448088,34024.0,34022.0,0.01218302]
[1625513358741,0.99348088,34024.0,34022.0,0.01218302]
[1625513358922,0.93648088,34024.0,34022.0,0.01218302]
[1625513359145,0.87748088,34024.0,34014.0,0.67757672]
[1625513359239,0.87748088,34024.0,34014.0,0.97795672]
[1625513359352,0.87748088,34024.0,34014.0,1.03695672]
[1625513359474,0.87748088,34024.0,34014.0,1.09595672]
[1625513359673,0.48115088,34024.0,34017.0,0.67755075]
[1625513359772,0.54015088,34024.0,34017.0,0.67755075]
[1625513359871,0.48115088,34024.0,34017.0,0.73655075]
[1625513360072,0.48115088,34024.0,34018.0,0.67753921]
[1625513360174,0.54015088,34024.0,34018.0,0.67753921]
[1625513360272,0.54015088,34024.0,34018.0,0.73653921]
[1625513360372,0.54015088,34024.0,34018.0,0.74872266]
[1625513360473,0.54015088,34024.0,34023.0,0.48115088]
[1625513360775,0.59915088,34024.0,34023.0,0.48115088]
[1625513360874,0.59915088,34024.0,34023.0,0.00348122]
[1625513361174,0.65615088,34024.0,34023.0,0.00348122]
[1625513361474,0.65615088,34024.0,34018.0,0.0034812]
[1625513361574,0.98223088,34024.0,34018.0,0.0034812]
[1625513362530,0.24057544,34019.0,34018.0,0.0034812]
[1625513362628,0.29757544,34019.0,34018.0,0.0034812]
[1625513362726,0.35657544,34019.0,34018.0,0.0034812]
[1625513362983,0.41557544,34019.0,34018.0,0.0034812]
[1625513363083,0.41557544,34019.0,34012.0,0.68185587]
[1625513363084,0.35657544,34019.0,34012.0,0.68185587]
[1625513363278,0.29957544,34019.0,34012.0,0.68185587]
[1625513363377,0.29957544,34019.0,34018.0,0.00348131]
[1625513363578,0.35657544,34019.0,34013.0,0.68184786]
[1625513363779,0.35657544,34019.0,34013.0,0.74084786]
[1625513363879,0.35657544,34019.0,34018.0,0.00348129]
[1625513364181,0.29957544,34019.0,34014.0,0.00348124]
[1625513364383,0.29957544,34019.0,34018.0,0.00348114]
[1625513364482,0.29957544,34019.0,34018.0,0.06248114]
[1625513364682,0.24057544,34019.0,34018.0,0.059]
[1625513364881,0.24057544,34019.0,34018.0,0.37622]
[1625513364984,0.24057544,34019.0,34018.0,0.37970087]
[1625513365184,0.24057544,34019.0,34018.0,0.39958888]
[1625513365501,0.24057544,34019.0,34018.0,0.38840285]
[1625513365589,0.24057544,34022.0,34018.0,4.64764229]
[1625513365683,0.057,34038.0,34018.0,4.64764229]
[1625513365783,0.057,34038.0,34018.0,4.63646123]
[1625513365885,0.175,34038.0,34018.0,4.63646123]
[1625513365982,0.175,34038.0,34019.0,0.01218204]
[1625513366082,0.175,34038.0,34019.0,0.07118204]
[1625513366195,0.175,34038.0,34025.0,0.67940802]
[1625513366383,0.175,34038.0,34025.0,0.73840802]
[1625513366583,0.24057544,34032.0,34031.0,0.24057544]
[1625513366788,0.29957544,34032.0,34031.0,0.24057544]
[1625513367087,0.29957544,34032.0,34031.0,0.244056]
[1625513367687,0.35657544,34032.0,34031.0,0.244056]
[1625513367886,0.29957544,34032.0,34031.0,0.244056]
[1625513367986,0.35657544,34032.0,34031.0,0.244056]
[1625513369587,0.35657544,34032.0,34031.0,0.24057544]
[1625513369688,0.35657544,34032.0,34031.0,0.25275693]
[1625513369790,0.29957544,34032.0,34031.0,0.25275693]
[1625513370438,0.29957544,34032.0,34031.0,0.24057544]
[1625513370538,0.29957544,34032.0,34031.0,0.25275646]
[1625513372044,0.29957544,34032.0,34031.0,0.76348232]
[1625513372145,0.29957544,34032.0,34031.0,1.07876232]
[1625513372601,0.059,34032.0,34031.0,1.76047555]
[1625513373651,0.059,34032.0,34031.0,1.81947555]
[1625513373752,0.059,34032.0,34031.0,2.84204324]
[1625513373951,0.059,34032.0,34031.0,2.78304324]
[1625513374353,0.059,34032.0,34031.0,5.34300967]
[1625513374752,0.059,34032.0,34031.0,5.40200967]
[1625513374954,0.059,34032.0,34031.0,4.03669424]
[1625513375152,0.059,34032.0,34031.0,3.97769424]
[1625513375557,0.059,34032.0,34031.0,5.34313167]
[1625513376056,0.059,34032.0,34031.0,5.40213167]
[1625513376356,0.0001,34032.0,34031.0,5.40213167]
[1625513376457,0.48115088,34039.0,34031.0,5.40213167]
[1625513376556,0.48115088,34039.0,34038.0,0.24057544]
[1625513376658,0.24057544,34039.0,34038.0,0.48115088]
[1625513376758,0.24057544,34039.0,34038.0,0.83354088]
[1625513376993,0.24057544,34047.0,34038.0,3.05717636]
[1625513377088,0.24057544,34051.0,34038.0,3.06587598]
[1625513377180,0.059,34047.0,34038.0,3.06587598]
[1625513377257,0.059,34047.0,34039.0,0.0121794]
[1625513377474,0.059,34047.0,34039.0,0.0711794]
[1625513377566,0.059,34047.0,34043.0,0.5124676]
[1625513377760,0.059,34047.0,34043.0,0.5714676]
[1625513377859,0.118,34047.0,34043.0,0.5124676]
[1625513377959,0.057,34046.0,34043.0,0.5124676]
[1625513378063,0.059,34046.0,34044.0,1.20787288]
[1625513378167,0.118,34046.0,34044.0,1.20787288]
[1625513378465,0.175,34046.0,34044.0,1.20787288]
[1625513378567,0.116,34046.0,34044.0,0.52461882]
[1625513378665,0.116,34046.0,34045.0,0.7339045]
[1625513378767,0.116,34046.0,34045.0,1.0027945]
[1625513379565,0.116,34046.0,34045.0,1.5154395]
[1625513379817,0.059,34046.0,34045.0,1.5154395]
[1625513379917,0.059,34046.0,34045.0,1.5744395]
[1625513380020,0.059,34046.0,34045.0,1.5154395]
[1625513380418,0.057,34053.0,34045.0,1.5154395]
[1625513380517,0.116,34053.0,34045.0,1.5154395]
[1625513380617,0.116,34053.0,34052.0,0.48115088]
[1625513380722,0.116,34053.0,34052.0,0.69943088]
[1625513381117,0.059,34053.0,34052.0,0.70291012]
[1625513383920,0.118,34053.0,34052.0,0.48463012]
[1625513384021,0.175,34053.0,34052.0,0.48463012]
[1625513384627,0.41557544,34053.0,34052.0,0.48463012]
[1625513384726,0.41557544,34053.0,34052.0,0.42563012]
[1625513384727,0.35657544,34053.0,34052.0,0.42563012]
[1625513384828,0.41557544,34053.0,34052.0,0.00347924]
[1625513384926,0.41557544,34053.0,34048.0,0.51287145]
[1625513384927,0.41557544,34053.0,34045.0,0.24057544]
[1625513385027,0.68222544,34053.0,34045.0,0.24057544]
[1625513385128,1.18222544,34053.0,34045.0,0.24057544]
[1625513385400,1.18222544,34053.0,34046.0,0.00348024]
[1625513385699,0.68222544,34053.0,34046.0,0.00348024]
[1625513386683,0.48115088,34047.0,34046.0,0.00348024]
[1625513386782,0.59715088,34047.0,34046.0,0.00348024]
[1625513386882,0.65615088,34047.0,34046.0,0.00348024]
[1625513387984,0.65615088,34047.0,34035.0,1.19763889]
[1625513388085,0.059,34045.0,34035.0,1.19763889]
[1625513388184,0.35935,34045.0,34035.0,1.17163889]
[1625513388301,0.057,34044.0,34036.0,0.00348066]
[1625513388486,0.175,34044.0,34036.0,0.00348066]
[1625513388691,0.72172632,34037.0,34036.0,0.00348066]
[1625513388788,1.07461632,34037.0,34036.0,0.00348066]
[1625513388889,1.19261632,34037.0,34036.0,0.00348066]
[1625513389089,1.19261632,34037.0,34032.0,0.00348095]
[1625513389590,1.19261632,34037.0,34030.0,0.00348109]
[1625513390393,1.19261632,34037.0,34026.0,1.02696009]
[1625513390394,1.19261632,34037.0,34029.0,0.00348124]
[1625513390647,1.19261632,34037.0,34027.0,0.00348121]
[1625513390742,0.48115088,34028.0,34027.0,0.00348121]
[1625513390845,0.99198088,34028.0,34027.0,0.00348121]
[1625513391443,0.99198088,34028.0,34025.0,0.51721997]
[1625513391695,0.99198088,34028.0,34026.0,0.00348119]
[1625513392396,0.45183,34028.0,34026.0,0.00348119]
[1625513392497,0.24057544,34037.0,34026.0,0.25631]
[1625513392603,0.50127348,34050.0,34026.0,0.37231]
[1625513392696,0.50127348,34050.0,34036.0,0.24057544]
[1625513392697,0.059,34037.0,34036.0,0.24057544]
[1625513392923,0.059,34037.0,34036.0,0.50101544]
[1625513393101,0.059,34037.0,34036.0,0.56349563]
[1625513393304,0.059,34037.0,34036.0,2.10571217]
[1625513394753,0.059,34037.0,34036.0,2.04671217]
[1625513394854,0.059,34037.0,34036.0,2.76843849]
[1625513395554,0.059,34037.0,34036.0,3.9693915]
[1625513396806,0.059,34037.0,34036.0,2.76843849]
[1625513397008,0.059,34037.0,34036.0,3.97096881]
[1625513397257,0.24057544,34039.0,34036.0,3.97096881]
[1625513397357,0.29957544,34039.0,34036.0,3.97096881]
[1625513397658,0.29957544,34039.0,34037.0,0.00348017]
[1625513397924,0.24057544,34039.0,34037.0,0.00348017]
[1625513398018,0.24057544,34039.0,34038.0,1.54643197]
[1625513398314,0.29957544,34039.0,34038.0,1.54643197]
[1625513398408,0.29957544,34039.0,34038.0,1.5499121]
[1625513398409,0.24057544,34039.0,34038.0,1.5499121]
[1625513398612,0.24057544,34039.0,34038.0,2.75267553]
[1625513398709,0.35857544,34039.0,34038.0,2.75267553]
[1625513398808,0.29957544,34039.0,34038.0,2.75267553]
[1625513398910,0.59915088,34039.0,34038.0,2.75267553]
[1625513399012,0.059,34039.0,34038.0,2.75267553]
[1625513399129,0.24057544,34044.0,34038.0,4.12999054]
[1625513399221,0.059,34039.0,34038.0,4.12999054]
[1625513399311,0.29957544,34044.0,34038.0,4.12999054]
[1625513399413,0.24057544,34044.0,34038.0,4.12999054]
[1625513399510,0.24057544,34044.0,34039.0,0.00347993]
[1625513399611,0.24057544,34044.0,34043.0,1.54963922]
[1625513400013,0.24057544,34044.0,34043.0,1.55311904]
[1625513400113,0.24057544,34044.0,34043.0,2.75833351]
[1625513400313,0.24057544,34044.0,34043.0,2.81733351]
[1625513400414,0.24057544,34044.0,34043.0,4.19463727]
[1625513400916,0.24057544,34044.0,34043.0,4.67578815]
[1625513401230,0.24057544,34051.0,34043.0,4.67578815]
[1625513401418,0.24057544,34051.0,34043.0,4.73478815]
[1625513401565,0.24057544,34051.0,34050.0,1.5493312]
[1625513401664,0.24057544,34051.0,34050.0,1.8835012]
[1625513401916,0.24057544,34051.0,34050.0,1.9425012]
[1625513402219,0.9464,34063.0,34050.0,1.9425012]
[1625513402420,0.9464,34063.0,34050.0,1.94598032]
[1625513402519,0.9464,34063.0,34050.0,2.00498032]
[1625513402719,0.9464,34063.0,34051.0,0.00347909]
[1625513402919,0.24057544,34060.0,34057.0,0.74244088]
[1625513403019,0.24057544,34060.0,34057.0,0.80144088]
[1625513403219,0.24057544,34060.0,34057.0,3.56386671]
[1625513403720,0.24057544,34060.0,34059.0,1.55375259]
[1625513404624,0.24057544,34060.0,34059.0,2.76332004]
[1625513404976,0.24057544,34060.0,34059.0,4.14567449]
[1625513406578,0.24057544,34060.0,34059.0,2.76332004]
[1625513407833,0.24057544,34060.0,34059.0,4.14552633]
[1625513410785,0.24057544,34060.0,34059.0,4.20452633]
[1625513411336,0.24057544,34060.0,34059.0,4.26352633]
[1625513411439,0.24057544,34064.0,34059.0,4.26352633]
[1625513411639,0.24057544,34067.0,34059.0,9.13212633]
[1625513412042,0.24057544,34071.0,34060.0,0.0113586]
[1625513412138,0.24057544,34071.0,34066.0,1.55388163]
[1625513412239,0.24057544,34071.0,34066.0,1.76863163]
[1625513412438,0.24057544,34071.0,34070.0,0.51760599]
[1625513412638,0.24057544,34071.0,34070.0,0.57660599]
[1625513413039,0.24057544,34071.0,34070.0,1.05775687]
[1625513413441,0.24057544,34071.0,34070.0,2.09290166]
[1625513413942,0.24057544,34071.0,34070.0,3.30049825]
[1625513414651,0.24057544,34071.0,34070.0,2.09290166]
[1625513414942,0.24057544,34071.0,34070.0,2.03390166]
[1625513415542,0.24057544,34071.0,34070.0,0.99875687]
[1625513415991,0.24057544,34071.0,34070.0,1.05775687]
[1625513416093,0.24057544,34071.0,34070.0,1.11675687]
[1625513416244,0.24057544,34076.0,34070.0,1.11675687]
[1625513416646,0.24057544,34076.0,34074.0,0.51680405]
[1625513416743,0.24057544,34080.0,34074.0,0.80823405]
[1625513416943,0.24057544,34080.0,34074.0,0.86723405]
[1625513417045,0.24057544,34080.0,34079.0,0.48115088]
[1625513418654,0.24057544,34080.0,34079.0,0.54015088]
[1625513418754,0.24057544,34080.0,34079.0,0.48115088]
[1625513418886,0.24057544,34080.0,34079.0,0.24057544]
[1625513418957,0.29957544,34080.0,34079.0,0.24057544]
[1625513419068,0.59915088,34080.0,34075.0,0.75738072]
[1625513419206,0.83539088,34080.0,34075.0,0.75738072]
[1625513419305,1.34240108,34080.0,34075.0,0.24057544]
[1625513419507,1.28340108,34080.0,34075.0,0.24057544]
[1625513419708,1.22440108,34080.0,34075.0,0.24057544]
[1625513419806,1.28340108,34080.0,34075.0,0.24057544]
[1625513420006,1.34240108,34080.0,34075.0,0.24057544]
[1625513420157,1.28340108,34080.0,34075.0,0.24057544]
[1625513420258,0.83539088,34080.0,34075.0,0.24057544]
[1625513420459,0.77639088,34080.0,34075.0,0.24057544]
[1625513420609,0.83539088,34080.0,34075.0,0.24057544]
[1625513420710,0.50695928,34079.0,34075.0,0.24057544]
[1625513420911,0.62495928,34079.0,34075.0,0.24057544]
[1625513421060,0.24057544,34076.0,34075.0,0.24057544]
[1625513422111,0.29957544,34076.0,34075.0,0.24057544]
[1625513422511,0.24057544,34076.0,34075.0,0.24057544]
[1625513422762,0.29957544,34076.0,34075.0,0.24057544]
[1625513422862,0.24057544,34076.0,34075.0,0.24057544]
[1625513422963,0.29957544,34076.0,34075.0,0.24057544]
[1625513423063,0.59915088,34076.0,34070.0,0.75703363]
[1625513423468,0.59915088,34076.0,34070.0,0.24057544]
[1625513423866,0.50795525,34075.0,34070.0,0.24057544]
[1625513424063,0.56695525,34075.0,34070.0,0.24057544]
[1625513424166,0.62595525,34075.0,34070.0,0.24057544]
[1625513424264,0.50738515,34073.0,34070.0,0.24057544]
[1625513424363,0.78067515,34073.0,34070.0,0.24057544]
[1625513424463,0.89867515,34073.0,34070.0,0.24057544]
[1625513425167,0.24057544,34071.0,34070.0,0.24057544]
[1625513425367,0.35857544,34071.0,34070.0,0.24057544]
[1625513428319,0.29957544,34071.0,34070.0,0.24057544]
[1625513429523,0.35857544,34071.0,34070.0,0.24057544]
[1625513430879,0.29957544,34071.0,34070.0,0.24057544]
[1625513430977,0.35857544,34071.0,34070.0,0.24057544]
[1625513432229,0.37525864,34071.0,34070.0,0.24057544]
[1625513432330,0.54490827,34071.0,34070.0,0.24057544]
[1625513432731,0.77804827,34071.0,34070.0,0.24057544]
[1625513432882,1.28661924,34071.0,34070.0,0.24057544]
[1625513433031,1.28661924,34071.0,34066.0,0.17221327]
[1625513433232,0.24057544,34067.0,34066.0,0.17221327]
[1625513433331,0.29957544,34067.0,34066.0,0.17221327]
[1625513434989,0.29957544,34067.0,34066.0,0.13121327]
[1625513435089,0.29957544,34067.0,34065.0,0.15744318]
[1625513435239,0.54015088,34067.0,34065.0,0.15744318]
[1625513439196,0.54015088,34067.0,34066.0,0.17228789]
[1625513441655,0.59915088,34067.0,34066.0,0.17228789]
[1625513442455,0.61583622,34067.0,34066.0,0.17228789]
[1625513443806,0.77049766,34067.0,34066.0,0.17228789]
[1625513445265,0.77049766,34067.0,34064.0,0.41284083]
[1625513445466,0.77049766,34067.0,34064.0,0.24057544]
[1625513445666,0.94184828,34067.0,34064.0,0.24057544]
[1625513446719,0.7705015,34067.0,34064.0,0.24057544]
[1625513447272,0.59915088,34067.0,34064.0,0.24057544]
[1625513447720,0.77065726,34067.0,34064.0,0.24057544]
[1625513448772,0.0166852,34066.0,34064.0,0.24057544]
[1625513448873,0.0756852,34066.0,34064.0,0.24057544]
[1625513449324,0.059,34066.0,34064.0,0.24057544]
[1625513450426,0.118,34066.0,34064.0,0.24057544]
[1625513450524,0.059,34066.0,34064.0,0.24057544]
[1625513450735,0.118,34066.0,34064.0,0.24057544]
[1625513450927,0.01668504,34065.0,34064.0,0.24057544]
[1625513451237,0.059,34066.0,34064.0,0.24057544]
[1625513451327,0.118,34066.0,34064.0,0.24057544]
[1625513451579,0.118,34066.0,34064.0,1.44969279]
[1625513452180,0.118,34066.0,34065.0,0.51818398]
[1625513452530,0.13468631,34066.0,34065.0,0.51818398]
[1625513452779,0.30603944,34066.0,34065.0,0.17623058]
[1625513453382,0.13468631,34066.0,34065.0,0.52172051]
[1625513453883,0.30601157,34066.0,34065.0,0.52172051]
[1625513454636,0.64821109,34066.0,34065.0,0.17629897]
[1625513455189,0.64821109,34066.0,34065.0,0.17282022]
[1625513455489,1.33224988,34066.0,34065.0,0.51878764]
[1625513455740,1.33224988,34066.0,34065.0,0.52226647]
[1625513456290,0.64821109,34066.0,34065.0,0.52226647]
[1625513456841,1.33216788,34066.0,34065.0,0.52226647]
[1625513457241,0.8186431,34066.0,34065.0,0.00347883]
[1625513457391,0.8186431,34066.0,34065.0,0.69573331]
[1625513458994,1.33242496,34066.0,34065.0,2.25343622]
[1625513459697,2.36130391,34066.0,34065.0,2.25343622]
[1625513459895,1.84752205,34066.0,34065.0,2.25343622]
[1625513459995,0.8186431,34066.0,34065.0,2.25343622]
[1625513460147,2.36225317,34066.0,34065.0,3.46642822]
[1625513461297,2.36225317,34066.0,34065.0,0.69573331]
[1625513461298,0.8186431,34066.0,34065.0,0.69573331]
[1625513461597,2.36408797,34066.0,34065.0,3.4684022]
[1625513461948,2.36408797,34066.0,34065.0,0.69573331]
[1625513462200,1.33384862,34066.0,34065.0,2.42863927]